fUSD/lending_fUSD_20251223
["ID","MTS","AMOUNT","RATE_DAILY","PERIOD"]
[399529816,1766448643036,-7000.0,0.00012859,2]
[399529817,1766448643046,-7000.0,0.0001287,2]
[399529818,1766448643056,-5689.35,0.00012893,2]
[399529819,1766448643066,-66695.13,0.00012893,2]
[399529820,1766448643076,-150.99,0.00012893,2]
[399529821,1766448643086,-9999.99,0.00012893,2]
[399529822,1766448643096,-3827.73,0.00012893,2]
[399529823,1766448643106,-7173.93,0.00012893,2]
[399529824,1766448643115,-6129.97,0.00012893,2]
[399529825,1766448643126,-8238.18,0.00012893,2]
[399529826,1766448643135,-299.99,0.00012893,2]
[399529827,1766448643145,-9999.99,0.00012893,2]
[399529828,1766448643155,-150.99,0.00012893,2]
[399529829,1766448643165,-9999.99,0.00012893,2]
[399529830,1766448643174,-151.0,0.00012893,2]
[399529831,1766448643184,-151.0,0.00012893,2]
[399529832,1766448643193,-151.0,0.00012893,2]
[399529833,1766448643203,-151.0,0.00012893,2]
[399529834,1766448643213,-461.95087,0.00012893,2]
[399529835,1766448643222,-461.95087,0.00012893,2]
[399529836,1766448643232,-461.95087,0.00012893,2]
[399529837,1766448643241,-461.950877,0.00012893,2]
[399529838,1766448643251,-253.282782,0.00012893,2]
[399529839,1766448643261,-253.282782,0.00012893,2]
[399529840,1766448643271,-253.282782,0.00012893,2]
[399529841,1766448643281,-253.28278495,0.00012893,2]
[399529842,1766448643290,-257.782305,0.00012893,2]
[399529843,1766448643300,-151.0,0.00012893,2]
[399529844,1766448643309,-289.860044,0.00012893,2]
[399529845,1766448643319,-289.860044,0.00012893,2]
[399529846,1766448643328,-197.293797,0.00012893,2]
[399529847,1766448643338,-289.860044,0.00012893,2]
[399529848,1766448643352,-289.860044,0.00012893,2]
[399529849,1766448643361,-7000.0,0.0001293,2]
[399529850,1766448643371,-1569.46,0.00012944,2]
[399529851,1766448643380,-166.66,0.00012984,2]
[399529852,1766448643391,-103874.56911945,0.0001299,2]
[399529853,1766448643400,-151.0,0.0001299,2]
[399529854,1766448643410,-151.0,0.0001299,2]
[399529855,1766448643419,-151.0,0.0001299,2]
[399529856,1766448643428,-278.598122,0.0001299,2]
[399529857,1766448643438,-151.0,0.0001299,2]
[399529858,1766448643448,-151.0,0.0001299,2]
[399529859,1766448643457,-151.0,0.0001299,2]
[399529860,1766448643467,-1904.73061634,0.00013,2]
[399529861,1766448643477,-5328.93897617,0.0001305,2]
[399529862,1766448643486,-200.0,0.00013125,2]
[399529863,1766448643495,-200.0,0.00013125,2]
[399529864,1766448643504,-500.0,0.00013125,2]
[399529865,1766448643514,-19233.40139907,0.00013152,2]
[399529866,1766448643523,-151.0,0.0001316,2]
[399529867,1766448643532,-225.18697532,0.0001316,2]
[399529868,1766448643542,-617.40005154,0.0001316,2]
[399529869,1766448643552,-151.0,0.0001316,2]
[399529870,1766448643561,-225.18697532,0.0001316,2]
[399529871,1766448643571,-31813.74271235,0.00013175,2]
[399529872,1766448643580,-1000.0,0.000132,2]
[399529873,1766448643589,-1659.0,0.000132,2]
[399529874,1766448643598,-1000.0,0.000132,2]
[399529875,1766448643608,-1000.0,0.000132,2]
[399529876,1766448643618,-1569.46,0.00013218,2]
[399529877,1766448643627,-1150.64014651,0.00013242,2]
[399529878,1766448643636,-1000.0,0.00013265,2]
[399529879,1766448643646,-1000.0,0.000133,2]
[399529880,1766448643655,-1000.0,0.000133,2]
[399529881,1766448643665,-1000.0,0.000133,2]
[399529882,1766448643674,-1000.0,0.000133,2]
[399529883,1766448643683,-1000.0,0.000133,2]
[399529884,1766448643692,-1000.0,0.000133,2]
[399529885,1766448643701,-1000.0,0.000133,2]
[399529886,1766448643711,-1000.0,0.000133,2]
[399529887,1766448643720,-1000.0,0.000133,2]
[399529888,1766448643729,-315.29,0.00013325,2]
[399529889,1766448643738,-1600.0,0.00013351,2]
[399529890,1766448643747,-166.66,0.00013374,2]
[399529891,1766448643756,-151.0,0.00013433,2]
[399529892,1766448643766,-160.0,0.00013433,2]
[399529893,1766448643775,-334.5472959,0.00013433,2]
[399529894,1766448643784,-287.61899177,0.00013433,2]
[399529895,1766448643794,-1000.0,0.000135,2]
[399529896,1766448643803,-1000.0,0.000135,2]
[399529897,1766448643811,-151.0,0.0001359,2]
[399529898,1766448643821,-200.0,0.00013598,2]
[399529899,1766448643829,-202.47,0.00013623,2]
[399529900,1766448643838,-152.0,0.00013657,2]
[399529901,1766448643847,-1256.0,0.00013657,2]
[399529902,1766448643856,-152.0,0.00013657,2]
[399529903,1766448643865,-1256.0,0.00013657,2]
[399529904,1766448643874,-152.0,0.00013657,2]
[399529905,1766448643883,-836.0,0.00013657,2]
[399529906,1766448643892,-152.0,0.00013657,2]
[399529907,1766448643901,-836.0,0.00013657,2]
[399529908,1766448643910,-152.0,0.00013657,2]
[399529909,1766448643919,-836.0,0.00013657,2]
[399529910,1766448643928,-153.0,0.00013657,2]
[399529911,1766448643937,-836.0,0.00013657,2]
[399529912,1766448643946,-836.0,0.00013657,2]
[399529913,1766448643955,-836.0,0.00013657,2]
[399529914,1766448643964,-836.0,0.00013657,2]
[399529915,1766448643973,-836.0,0.00013657,2]
[399529916,1766448643982,-568.95479896,0.00013657,2]
[399529917,1766448643991,-836.0,0.00013657,2]
[399529918,1766448644000,-836.0,0.00013657,2]
[399529919,1766448644010,-153.0,0.00013657,2]
[399529920,1766448644019,-836.0,0.00013657,2]
[399529921,1766448644028,-200.0,0.00013673,2]
[399529922,1766448644038,-200.0,0.00013673,2]
[399529923,1766448644047,-500.0,0.00013673,2]
[399529924,1766448644056,-500.0,0.00013698,2]
[399529925,1766448644065,-500.0,0.00013698,2]
[399529926,1766448644074,-500.0,0.00013698,2]
[399529927,1766448644083,-500.0,0.00013698,2]
[399529928,1766448644092,-500.0,0.00013698,2]
[399529929,1766448644102,-500.0,0.00013698,2]
[399529930,1766448644111,-500.0,0.00013698,2]
[399529931,1766448644120,-500.0,0.00013698,2]
[399529932,1766448644129,-151.26695213,0.00013698,2]
[399529933,1766448644138,-500.0,0.00013698,2]
[399529934,1766448644148,-500.0,0.00013698,2]
[399529935,1766448644157,-500.0,0.00013698,2]
[399529936,1766448644166,-500.0,0.00013698,2]
[399529937,1766448644175,-531.25264543,0.00013698,2]
[399529938,1766448644185,-500.0,0.00013698,2]
[399529939,1766448644194,-500.0,0.00013698,2]
[399529940,1766448644203,-500.0,0.00013698,2]
[399529941,1766448644212,-500.0,0.00013698,2]
[399529942,1766448644221,-500.0,0.00013698,2]
[399529943,1766448644230,-500.0,0.00013698,2]
[399529944,1766448644240,-500.0,0.00013698,2]
[399529945,1766448644249,-365.85655811,0.00013698,2]
[399529946,1766448644258,-500.0,0.00013698,2]
[399529947,1766448644268,-500.0,0.00013698,2]
[399529948,1766448644277,-500.0,0.00013698,2]
[399529949,1766448644287,-502.20097249,0.00013698,2]
[399529950,1766448644296,-500.0,0.00013698,2]
[399529951,1766448644305,-500.0,0.00013698,2]
[399529952,1766448644315,-500.0,0.00013698,2]
[399529953,1766448644324,-500.0,0.00013698,2]
[399529954,1766448644333,-500.0,0.00013698,2]
[399529955,1766448644344,-500.0,0.00013698,2]
[399529956,1766448644359,-500.0,0.00013698,2]
[399529957,1766448644369,-500.0,0.00013698,2]
[399529958,1766448644378,-500.0,0.00013698,2]
[399529959,1766448644388,-500.0,0.00013698,2]
[399529960,1766448644398,-500.0,0.00013698,2]
[399529961,1766448644407,-500.0,0.00013698,2]
[399529962,1766448644417,-500.0,0.00013698,2]
[399529963,1766448644426,-330.2821951,0.00013698,2]
[399529964,1766448644436,-500.0,0.00013698,2]
[399529965,1766448644445,-500.0,0.00013698,2]
[399529966,1766448644454,-500.0,0.00013698,2]
[399529967,1766448644464,-500.0,0.00013698,2]
[399529968,1766448644473,-500.0,0.00013698,2]
[399529969,1766448644482,-500.0,0.00013698,2]
[399529970,1766448644491,-500.0,0.00013698,2]
[399529971,1766448644501,-500.0,0.00013698,2]
[399529972,1766448644510,-500.0,0.00013698,2]
[399529973,1766448644520,-500.0,0.00013698,2]
[399529974,1766448644529,-500.0,0.00013698,2]
[399529975,1766448644539,-500.0,0.00013698,2]
[399529976,1766448644548,-500.0,0.00013698,2]
[399529977,1766448644558,-500.0,0.00013698,2]
[399529978,1766448644567,-500.0,0.00013698,2]
[399529979,1766448644577,-500.0,0.00013698,2]
[399529980,1766448644586,-500.0,0.00013698,2]
[399529981,1766448644595,-500.0,0.00013698,2]
[399529982,1766448644604,-500.0,0.00013698,2]
[399529983,1766448644614,-500.0,0.00013698,2]
[399529984,1766448644623,-500.0,0.00013698,2]
[399529985,1766448644632,-500.0,0.00013698,2]
[399529986,1766448644642,-632.65,0.00013698,2]
[399529987,1766448644652,-500.0,0.00013698,2]
[399529988,1766448644662,-500.0,0.00013698,2]
[399529989,1766448644671,-500.0,0.00013698,2]
[399529990,1766448644680,-500.0,0.00013698,2]
[399529991,1766448644689,-500.0,0.00013698,2]
[399529992,1766448644699,-500.0,0.00013698,2]
[399529993,1766448644708,-500.0,0.00013698,2]
[399529994,1766448644717,-500.0,0.00013698,2]
[399529995,1766448644726,-512.32849253,0.00013698,2]
[399529996,1766448644735,-500.0,0.00013698,2]
[399529997,1766448644744,-500.0,0.00013698,2]
[399529998,1766448644754,-153.149163,0.00013698,2]
[399529999,1766448644763,-500.0,0.00013698,2]
[399530000,1766448644772,-500.0,0.00013698,2]
[399530001,1766448644781,-500.0,0.00013698,2]
[399530002,1766448644791,-500.0,0.00013698,2]
[399530003,1766448644800,-500.0,0.00013698,2]
[399530004,1766448644809,-500.0,0.00013698,2]
[399530005,1766448644818,-500.0,0.00013698,2]
[399530006,1766448644827,-500.0,0.00013698,2]
[399530007,1766448644836,-500.0,0.00013698,2]
[399530008,1766448644845,-500.0,0.00013698,2]
[399530009,1766448644854,-500.0,0.00013698,2]
[399530010,1766448644863,-500.0,0.00013698,2]
[399530011,1766448644872,-500.0,0.00013698,2]
[399530012,1766448644882,-270.41631183,0.00013698,2]
[399530013,1766448644891,-500.0,0.00013698,2]
[399530014,1766448644900,-500.0,0.00013698,2]
[399530015,1766448644909,-500.0,0.00013698,2]
[399530016,1766448644919,-500.0,0.00013698,2]
[399530017,1766448644930,-500.0,0.00013698,2]
[399530018,1766448644939,-183.93452706,0.00013698,2]
[399530019,1766448644949,-533.10990625,0.00013698,2]
[399530020,1766448644958,-500.0,0.00013698,2]
[399530021,1766448644967,-500.0,0.00013698,2]
[399530022,1766448644976,-500.0,0.00013698,2]
[399530023,1766448644986,-500.0,0.00013698,2]
[399530024,1766448644995,-500.0,0.00013698,2]
[399530025,1766448645005,-604.31886581,0.00013698,2]
[399530026,1766448645014,-500.0,0.00013698,2]
[399530027,1766448645024,-500.0,0.00013698,2]
[399530028,1766448645033,-500.0,0.00013698,2]
[399530029,1766448645043,-500.0,0.00013698,2]
[399530030,1766448645052,-500.0,0.00013698,2]
[399530031,1766448645061,-500.0,0.00013698,2]
[399530032,1766448645071,-500.0,0.00013698,2]
[399530033,1766448645316,-500.0,0.00013698,2]
[399530034,1766448645327,-1000.0,0.00013699,2]
[399530035,1766448645336,-200.0,0.00013699,2]
[399530036,1766448645347,-166.66,0.00013699,2]
[399530037,1766448645358,-151.0,0.00013699,2]
[399530038,1766448645367,-151.0,0.00013699,2]
[399530039,1766448645376,-151.0,0.00013699,2]
[399530040,1766448645387,-151.0,0.00013699,2]
[399530041,1766448645396,-445.92,0.00013699,2]
[399530042,1766448645405,-707.85,0.00013699,2]
[399530043,1766448645415,-151.0,0.00013699,2]
[399530044,1766448645425,-151.0,0.00013699,2]
[399530046,1766448645434,-151.0,0.00013699,2]
[399530048,1766448645443,-155.239757,0.00013699,2]
[399530050,1766448645452,-151.0,0.00013699,2]
[399530052,1766448645462,-151.0,0.00013699,2]
[399530054,1766448645471,-151.0,0.00013699,2]
[399530056,1766448645480,-151.0,0.00013699,2]
[399530057,1766448645489,-151.0,0.00013699,2]
[399530058,1766448645498,-151.0,0.00013699,2]
[399530059,1766448645507,-151.0,0.00013699,2]
[399530060,1766448645516,-151.0,0.00013699,2]
[399530061,1766448645525,-151.0,0.00013699,2]
[399530062,1766448645534,-218.441076,0.00013699,2]
[399530063,1766448645543,-151.0,0.00013699,2]
[399530064,1766448645552,-151.0,0.00013699,2]
[399530065,1766448645561,-151.0,0.00013699,2]
[399530066,1766448645570,-151.0,0.00013699,2]
[399530067,1766448645580,-151.0,0.00013699,2]
[399530068,1766448645589,-151.0,0.00013699,2]
[399530069,1766448645598,-151.0,0.00013699,2]
[399530070,1766448645608,-151.0,0.00013699,2]
[399530071,1766448645618,-151.0,0.00013699,2]
[399530072,1766448645627,-194.343068,0.00013699,2]
[399530073,1766448645636,-612.93,0.00013699,2]
[399530074,1766448645645,-151.0,0.00013699,2]
[399530075,1766448645655,-151.0,0.00013699,2]
[399530076,1766448645664,-151.0,0.00013699,2]
[399530077,1766448645673,-272.689855,0.00013699,2]
[399530078,1766448645682,-151.0,0.00013699,2]
[399530079,1766448645691,-151.0,0.00013699,2]
[399530080,1766448645701,-151.0,0.00013699,2]
[399530081,1766448645710,-151.0,0.00013699,2]
[399530082,1766448645719,-151.0,0.00013699,2]
[399530083,1766448645728,-151.0,0.00013699,2]
[399530084,1766448645737,-154.0,0.00013699,2]
[399530085,1766448645746,-154.0,0.00013699,2]
[399530086,1766448645755,-154.0,0.00013699,2]
[399530087,1766448645764,-154.0,0.00013699,2]
[399530088,1766448645773,-154.0,0.00013699,2]
[399530089,1766448645782,-154.0,0.00013699,2]
[399530090,1766448645791,-154.0,0.00013699,2]
[399530091,1766448645800,-154.0,0.00013699,2]
[399530092,1766448645810,-154.0,0.00013699,2]
[399530093,1766448645819,-154.0,0.00013699,2]
[399530094,1766448645828,-154.0,0.00013699,2]
[399530095,1766448645838,-154.0,0.00013699,2]
[399530096,1766448645848,-154.0,0.00013699,2]
[399530097,1766448645857,-154.0,0.00013699,2]
[399530098,1766448645866,-154.0,0.00013699,2]
[399530099,1766448645875,-154.0,0.00013699,2]
[399530100,1766448645884,-154.0,0.00013699,2]
[399530101,1766448645893,-154.0,0.00013699,2]
[399530102,1766448645902,-154.0,0.00013699,2]
[399530103,1766448645911,-154.0,0.00013699,2]
[399530104,1766448645921,-154.0,0.00013699,2]
[399530105,1766448645930,-154.0,0.00013699,2]
[399530106,1766448645939,-154.0,0.00013699,2]
[399530107,1766448645948,-154.0,0.00013699,2]
[399530108,1766448645957,-154.0,0.00013699,2]
[399530109,1766448645967,-154.0,0.00013699,2]
[399530110,1766448645976,-154.0,0.00013699,2]
[399530111,1766448645986,-154.0,0.00013699,2]
[399530112,1766448645995,-154.0,0.00013699,2]
[399530113,1766448646005,-154.0,0.00013699,2]
[399530114,1766448646014,-214.63266477,0.00013699,2]
[399530115,1766448646024,-500.0,0.00013699,2]
[399530116,1766448646033,-500.0,0.00013699,2]
[399530117,1766448646042,-500.0,0.00013699,2]
[399530118,1766448646052,-500.0,0.00013699,2]
[399530119,1766448646061,-287.73994377,0.00013699,2]
[399530120,1766448646071,-500.0,0.00013699,2]
[399530121,1766448646080,-500.0,0.00013699,2]
[399530122,1766448646089,-500.0,0.00013699,2]
[399530123,1766448646098,-500.0,0.00013699,2]
[399530125,1766448646107,-500.0,0.00013699,2]
[399530126,1766448646117,-500.0,0.00013699,2]
[399530127,1766448646126,-3654.64,0.000137,2]
[399530128,1766448646136,-3654.64,0.000137,2]
[399530129,1766448646146,-151.0,0.00013708,2]
[399530130,1766448646155,-233.51889341,0.00013708,2]
[399530131,1766448646164,-640.24385345,0.00013708,2]
[399530132,1766448646174,-151.0,0.00013708,2]
[399530133,1766448646184,-233.51889341,0.00013708,2]
[399530134,1766448646194,-240.81,0.00013722,2]
[399530135,1766448646203,-166.66,0.00013764,2]
[399530136,1766448646213,-1569.46,0.00013766,2]
[399530137,1766448646222,-19233.40139907,0.00013777,2]
[399530138,1766448646231,-6277.69942524,0.00013796,2]
[399530139,1766448646288,-25536.04328711,0.00013796,2]
[399530140,1766448646298,-166.66,0.00013836,2]
[399530141,1766448646308,-152.325413,0.00013889,2]
[399530142,1766448646317,-315.29,0.0001393,2]
[399530143,1766448646326,-500.0,0.0001397,2]
[399530144,1766448646336,-500.0,0.0001397,2]
[399530145,1766448646346,-500.0,0.0001397,2]
[399530146,1766448646359,-500.0,0.0001397,2]
[399530147,1766448646369,-166.66,0.00013973,2]
[399530148,1766448646378,-29.02129942,0.00014029,2]
[399530149,1766448646391,-577.20535832,0.00014029,2]
[399530150,1766448646402,-216.77334226,0.00014029,2]
[399530151,1766448646412,-823.0,0.00014029,2]
[399530152,1766448646422,-226.23782978,0.00014037,2]
[399530153,1766448646433,-9905.27958192,0.00014037,2]
[399530154,1766448646442,-1569.46,0.0001404,2]
[399530155,1766448646451,-666.0,0.00014045,2]
[399530156,1766448646460,-25605.27238714,0.00014046,2]
[399530157,1766448646487,-254722.21900086,0.00014046,2]
[399530158,1766448646496,-3292.0,0.00014052,2]
[399530159,1766448646505,-166.66,0.0001411,2]
[399530160,1766448646514,-500.0,0.00014199,2]
[399530161,1766448646524,-268.53,0.00014199,2]
[399530162,1766448646533,-500.0,0.000142,2]
[399530163,1766448646542,-500.0,0.000142,2]
[399530164,1766448646552,-500.0,0.000142,2]
[399530165,1766448646561,-500.0,0.000142,2]
[399530166,1766448646570,-500.0,0.000142,2]
[399530167,1766448646579,-500.0,0.000142,2]
[399530168,1766448646588,-500.0,0.000142,2]
[399530169,1766448646598,-500.0,0.000142,2]
[399530170,1766448646607,-500.0,0.000142,2]
[399530171,1766448646617,-500.0,0.000142,2]
[399530172,1766448646626,-500.0,0.000142,2]
[399530173,1766448646636,-500.0,0.000142,2]
[399530174,1766448646645,-494.16568135,0.000142,2]
[399530175,1766448646654,-500.0,0.000142,2]
[399530176,1766448646663,-500.0,0.000142,2]
[399530177,1766448646672,-500.0,0.000142,2]
[399530178,1766448646681,-509.35122608,0.000142,2]
[399530179,1766448646691,-500.0,0.000142,2]
[399530180,1766448646700,-500.0,0.000142,2]
[399530181,1766448646709,-500.0,0.000142,2]
[399530182,1766448646718,-510.86029649,0.000142,2]
[399530183,1766448646727,-500.0,0.000142,2]
[399530184,1766448646736,-500.0,0.000142,2]
[399530185,1766448646745,-500.0,0.000142,2]
[399530186,1766448646754,-500.0,0.000142,2]
[399530187,1766448646763,-500.0,0.000142,2]
[399530188,1766448646771,-500.0,0.000142,2]
[399530189,1766448646780,-596.20415987,0.000142,2]
[399530190,1766448646789,-500.0,0.000142,2]
[399530191,1766448646799,-500.0,0.000142,2]
[399530192,1766448646808,-500.0,0.000142,2]
[399530193,1766448646817,-500.0,0.000142,2]
[399530194,1766448646826,-500.0,0.000142,2]
[399530195,1766448646835,-207.4,0.0001422,2]
[399530196,1766448646844,-200.0,0.00014221,2]
[399530197,1766448646853,-200.0,0.00014221,2]
[399530198,1766448646862,-500.0,0.00014221,2]
[399530199,1766448646871,-308.5,0.00014229,2]
[399530200,1766448646880,-166.66,0.00014247,2]
[399530201,1766448646889,-151.0,0.00014256,2]
[399530202,1766448646898,-349.72142518,0.00014256,2]
[399530203,1766448646907,-663.93287602,0.00014256,2]
[399530204,1766448646916,-151.0,0.00014256,2]
[399530205,1766448646925,-242.15909246,0.00014256,2]
[399530206,1766448646934,-500.0,0.000143,2]
[399530207,1766448646942,-500.0,0.000143,2]
[399530208,1766448646952,-500.0,0.000143,2]
[399530209,1766448646962,-500.0,0.000143,2]
[399530210,1766448646971,-500.0,0.000143,2]
[399530211,1766448646980,-500.0,0.000143,2]
[399530212,1766448646989,-500.0,0.000143,2]
[399530213,1766448646998,-500.0,0.000143,2]
[399530214,1766448647007,-500.0,0.000143,2]
[399530215,1766448647017,-500.0,0.000143,2]
[399530216,1766448647026,-500.0,0.000143,2]
[399530217,1766448647035,-500.0,0.000143,2]
[399530218,1766448647045,-1569.46,0.00014314,2]
[399530219,1766448647055,-166.66,0.00014384,2]
[399530220,1766448647064,-2644.10745132,0.00014401,2]
[399530221,1766448647230,-15941.23605073,0.00014401,2]
[399530222,1766448647242,-648.05789702,0.00014401,2]
[399530223,1766448647251,-305.66526932,0.00014417,2]
[399530224,1766448647265,-849.51003565,0.00014417,2]
[399530225,1766448647313,-1911.76033256,0.00014417,2]
[399530226,1766448647328,-886.2,0.00014417,2]
[399530227,1766448647525,-482.68791651,0.00012064,2]
[399530228,1766448647535,-247.17722841,0.00012064,2]
[399530229,1766448647546,-482.68791651,0.00012064,2]
[399530230,1766448647555,-5375.22297157,0.00014417,2]
[399530231,1766448647566,-881.0,0.00014417,2]
[399530232,1766448647577,-21592.05994947,0.00014417,2]
[399530233,1766448647591,-12.32415378,0.00014417,2]
[399530234,1766448647601,-7172.25867349,0.0001451,2]
[399530235,1766448647610,-315.29,0.00014536,2]
[399530236,1766448647620,-1569.55386216,0.00014588,2]
[399530237,1766448647629,-1000.0,0.00014592,2]
[399530238,1766448647638,-202.47,0.00014642,2]
[399530239,1766448647648,-1600.0,0.00014686,2]
[399530240,1766448647657,-240.81,0.0001476,2]
[399530241,1766448647666,-200.0,0.00014769,2]
[399530242,1766448647675,-200.0,0.00014769,2]
[399530243,1766448647684,-500.0,0.00014769,2]
[399530244,1766448647694,-151.0,0.00014802,2]
[399530245,1766448647703,-203.66916706,0.00014802,2]
[399530246,1766448647712,-346.92554585,0.00014802,2]
[399530247,1766448647722,-298.26089446,0.00014802,2]
[399530248,1766448647731,-599.60298507,0.00014803,2]
[399530249,1766448647740,-747.8093786,0.00014803,2]
[399530250,1766448647749,-642.94,0.00014803,2]
[399530251,1766448647759,-151.0,0.00014804,2]
[399530252,1766448647768,-688.49839244,0.00014804,2]
[399530253,1766448647777,-151.0,0.00014804,2]
[399530254,1766448647786,-251.11897888,0.00014804,2]
[399530255,1766448647795,-817.88019727,0.00015026,2]
[399530256,1766448647806,-18415.5212018,0.00015026,2]
[399530257,1766448647816,-25087.3887196,0.00015038,2]
[399530258,1766448648058,-151.0,0.00013768,2]
[399530259,1766448648069,-6726.35399275,0.00015038,2]
[399530260,1766448648079,-1000.0,0.00015047,2]
[399530261,1766448648088,-150.0,0.00015068,2]
[399530262,1766448648097,-440.54,0.00015068,2]
[399530263,1766448648106,-333.466165,0.00015068,2]
[399530264,1766448648114,-333.466165,0.00015068,2]
[399530265,1766448648123,-333.466165,0.00015068,2]
[399530266,1766448648133,-333.466165,0.00015068,2]
[399530267,1766448648142,-333.466165,0.00015068,2]
[399530268,1766448648151,-333.466165,0.00015068,2]
[399530269,1766448648161,-333.466165,0.00015068,2]
[399530270,1766448648170,-333.466165,0.00015068,2]
[399530271,1766448648179,-333.466165,0.00015068,2]
[399530272,1766448648188,-333.466165,0.00015068,2]
[399530273,1766448648197,-333.466165,0.00015068,2]
[399530274,1766448648206,-333.466165,0.00015068,2]
[399530275,1766448648215,-333.466165,0.00015068,2]
[399530276,1766448648224,-333.466165,0.00015068,2]
[399530277,1766448648234,-333.466165,0.00015068,2]
[399530278,1766448648243,-333.466165,0.00015068,2]
[399530279,1766448648252,-333.466165,0.00015068,2]
[399530280,1766448648261,-333.466165,0.00015068,2]
[399530281,1766448648271,-333.466165,0.00015068,2]
[399530282,1766448648280,-333.466174,0.00015068,2]
[399530283,1766448648290,-715.0,0.00015068,2]
[399530284,1766448648299,-152.98420133,0.00015095,2]
[399530285,1766448648308,-315.29,0.00015142,2]
[399530286,1766448648317,-1150.64014651,0.00015173,2]
[399530287,1766448648326,-10131.5174117,0.00015277,2]
[399530288,1766448648335,-150.0,0.00015288,2]
[399530289,1766448648345,-150.0,0.00015288,2]
[399530290,1766448648357,-150.0,0.00015288,2]
[399530291,1766448648366,-150.0,0.00015288,2]
[399530292,1766448648376,-150.0,0.00015288,2]
[399530293,1766448648385,-150.0,0.00015288,2]
[399530294,1766448648395,-150.0,0.00015288,2]
[399530295,1766448648404,-150.0,0.00015288,2]
[399530296,1766448648413,-150.0,0.00015288,2]
[399530297,1766448648424,-150.0,0.00015288,2]
[399530298,1766448648433,-150.0,0.00015288,2]
[399530299,1766448648443,-18488.71754462,0.0001529,2]
[399530300,1766448648977,-500.0,0.0001529,2]
[399530301,1766448648992,-5103.0,0.0001529,2]
[399530305,1766449243022,999.0,0.00012314,3]
[399530318,1766449831629,-208.3,0.00011813,2]
[399530319,1766449831639,-195.0,0.0001187,2]
[399530320,1766449831648,-1200.0,0.00011927,2]
[399530321,1766449831658,-300.0,0.00011927,2]
[399530322,1766449831669,-276.825849,0.00011927,2]
[399530323,1766449831681,-610.96842614,0.00011927,2]
[399530324,1766449831692,-312.20572486,0.00011927,2]
[399530325,1766449831703,-57.18615806,0.00011928,2]
[399530326,1766449831715,-24893.54292524,0.00011928,2]
[399530327,1766449831725,-195.0,0.0001194,2]
[399530328,1766449831735,-1908.3692,0.00011963,2]
[399530329,1766449831745,-819.42,0.00012068,2]
[399530330,1766449831754,-150.0,0.00012068,2]
[399530331,1766449831764,-578.20924308,0.00012069,2]
[399530332,1766449831774,-200.0,0.00012069,2]
[399530333,1766449831783,-207.4,0.00012069,2]
[399530334,1766449831792,-215.0738,0.00012069,2]
[399530335,1766449831802,-223.0315306,0.00012069,2]
[399530336,1766449831811,-231.28369723,0.00012069,2]
[399530337,1766449831820,-239.84119403,0.00012069,2]